{"text_format":"3","workbook":"xlsx","n_sheets":4,"sheets":["Mérföldkövek","Ütemterv","Névjegy","Diagramadatok"],"not_rendered":{"charts":1,"defined_names":2},"read":"whole","date_system":"1900"}

{"sheet":"Mérföldkövek","index":0,"n_rows":27,"n_cols":5,"rows_kept":27}
["Ezen a munkalapon fontos mérföldköveket és tevékenységeket megadva létrehozhat egy ütemterv.\nA C1 cellában szerepel a munkalap címe. \nA Névjegy munkalapon találhatók a munkalap használatára vonatkozó információk, beleértve a képernyőolvasók utasításait.\nTovábbi utasításokat az A oszlopban lefelé navigálva talál.",null,"Mérföldkövek"]
["A táblázatfejlécek a C2–E2 cellákban vannak. A rendezés és szűrés beállításokkal rendezést és keresést folytathat a bejegyzések között.\nA táblázatban a C3 cellával kezdődően megadhatja a mérföldkövek dátumokkal, illetve a pozíciót a mérföldkő diagramon való ábrázolásához.\nA B oszlop el van rejtve. Az adatok alapján létrejött diagramban egy görgetősáv használatával tekinthetők meg az ütemterv különböző részei. A B oszlop segítségével meghatározható, hogy mely mérföldkövek kell ábrázolni a diagramon a görgetősáv görgetési léptékének növelésekor. \nFigyelmeztetés: A B oszlop tartalmának törlése vagy módosítása megsértheti a munkafüzetbe épített diagramkészítés integritását.","Szám","Pozíció","Dátum","Mérföldkő"]
["A C1 cellában adhatja meg a pozíció a dátum és a mérföldkő diagramon való ábrázolásához. Egy 1 és 3 közötti pozitív számot megadva a mérföldkövet az ütemterv fölött ábrázolhatja a diagramon. Egy -1 és -3 közötti negatív számot megadva a mérföldkövet az ütemterv alatt ábrázolhatja a diagramon.\nA táblázat D és E oszlopában adhatja meg a dátum és a mérföldkö vagy a tevékenységet.\nIsmételje meg ezt a jobb oldali táblázat minden egyes új sora esetében.\nA 3–26. sorban mintaadatok szerepelnek. Ezeket a mintatartalmakat módosítva vagy törölve elkészítheti saját ütemtervét.\nLépjen az A27 cellába a következő utasításért.",{"$f":"ROW($A1)","v":1},1,{"$f":"TODAY()","v":"2018-06-29"},"Kezdés"]
[null,{"$f":"ROW($A2)","v":2},-2,{"$f":"D3+10","v":"2018-07-09"},"Problémaelemzés\n1. tevékenység"]
[null,3,1,{"$f":"D4+20","v":"2018-07-29"},"Üzleti terv elkészítése\n1. tevékenység\n2. tevékenység"]
[null,4,-1,{"$f":"D5+30","v":"2018-08-28"},"Bemutató ellenőrzése"]
[null,5,{"v":-0.5,"d":"-1"},{"$f":"D6+40","v":"2018-10-07"},"Vezetőségi nyitóülés\n1. tevékenység\n2. tevékenység"]
[null,6,2,{"$f":"D7+50","v":"2018-11-26"},"Vezetőségi eligazítás\n1. tevékenység\n2. tevékenység\n3. tevékenység"]
[null,7,{"v":0.5,"d":"1"},{"$f":"D8+60","v":"2019-01-25"},"Részvényvásárlás"]
[null,8,-1,{"$f":"D9+70","v":"2019-04-05"},"Erőforrás-kijelölés"]
[null,9,{"v":0.5,"d":"1"},{"$f":"D10+80","v":"2019-06-24"},"Csapat létrehozása\n1. tevékenység "]
[null,10,-2,{"$f":"D11+90","v":"2019-09-22"},"Nyitó csapatgyűlés\n1. tevékenység \n2. tevékenység\n3. tevékenység\n4. tevékenység"]
[null,11,3,{"$f":"D12+100","v":"2019-12-31"},"Adatgyűjtés megkezdése"]
[null,12,-1,{"$f":"D13+90","v":"2020-03-30"},"Adatelemzés"]
[null,13,1,{"$f":"D14+80","v":"2020-06-18"},"Tervezés"]
[null,14,1,{"$f":"D15+70","v":"2020-08-27"},"Megvalósíthatósági példa"]
[null,15,-3,{"$f":"D16+60","v":"2020-10-26"},"Tesztelés és elemzés"]
[null,16,-2,{"$f":"D17+50","v":"2020-12-15"},"Áttervezés"]
[null,17,2,{"$f":"D18+40","v":"2021-01-24"},"Újrafejlesztés"]
[null,18,-1,{"$f":"D19+30","v":"2021-02-23"},"Tesztelés és elemzés"]
[null,19,1,{"$f":"D20+20","v":"2021-03-15"},"Áttervezés"]
[null,20,-3,{"$f":"D21+10","v":"2021-03-25"},"Újrafejlesztés"]
[null,21,2,{"$f":"D22+20","v":"2021-04-14"},"Végső tesztelés"]
[null,22,1,{"$f":"D23+30","v":"2021-05-14"},"Bétatesztelés"]
[null,23,-3,{"$f":"D24+40","v":"2021-06-23"},"Ellenőrzés"]
[null,24,-2,{"$f":"D25+50","v":"2021-08-12"},"Továbbítás a marketingrészlegnek"]
["Ha további sorokat szeretne felvenni az Ütemterv mérföldkövek táblázatba, egyszerűen szúrjon be egy új sort e fölé.\nEzen a munkalapon nincs több utasítás.",null,"Ha további mérföldköveket szeretne felvenni, szúrjon be új sorokat e fölé."]

{"sheet":"Ütemterv","index":1,"n_rows":3,"n_cols":4,"rows_kept":3}
["Ezen a munkalapon szerepel a mérföldköveket a Mérföldkövek munkalapról megjelenítő diagram. \nAz évek a B2, a C2 és a D2 cellában szerepelnek, és a Címsor 3 stílus van rájuk alkalmazva.\nEgyszerre 10 mérföldkő jelenik meg a diagramon. \nA B4–D4 cellákban lévő görgetősávval navigálhat az ütemtervben.\nAz ütemterv évei a B3–D3 cellákban szerepelnek.\nEzen a munkalapon nincs több utasítás."]
[]
[null,{"$f":"Diagramadatok!B20","v":2018},{"$f":"Diagramadatok!B21","v":""},{"$f":"Diagramadatok!B22","v":2019}]

{"sheet":"Névjegy","index":2,"n_rows":5,"n_cols":1,"rows_kept":5}
["A munkafüzet ismertetése"]
["Útmutatók képernyőolvasókhoz"]
["Ebben a munkafüzetben 4 munkalap található. \n\nMérföldkövek\nÜtemterv\nNévjegy\nDiagramadatok (rejtett)\n\nAz egyes munkalapok utasításai az A oszlopban találhatók az A1 cellával kezdődően. Rejtett formázású szöveggel írtuk őket. Minden lépés végigvezeti az adott sorra vonatkozó információkon. Ettől kifejezetten eltérő utasítás hiányában a további lépések az A2, A3 stb. cellákban folytatódnak. Az utasítás szövegében például szerepelhet a következő: „lépjen az A6 cellába” a következő lépésért. \n\nA rejtett szöveg nyomtatásban nem lesz látható.\n\nHa bármelyik munkalapról el szeretné távolítani ezeket az utasításokat, egyszerűen törölje az A oszlopot.\n"]
["A fejlesztési ütemterv pozíciókat használ a mérföldkövek és tevékenységek ábrázolásához. A pozíciókkal súlyozható egy mérföldkő vagy egy tevékenység. Egyszerűen tetszés szerint módosítsa az értékeket. A mérföldkő/3. tevékenység például nagyobb súllyal esik latba, mint a mérföldkő/2. tevékenység. Ha ezt jelölni szeretné a diagramon, egyszerűen adjon a mérföldkő/2. tevékenység értékénél magasabb Pozíció értéket a mérföldkő/3. tevékenységnek.   \n"]
["Ezen a munkalapon ez az utolsó utasítás."]

{"sheet":"Diagramadatok","index":3,"n_rows":26,"n_cols":4,"rows_kept":26,"hidden":true}
["Ezen a munkalapon szerepelnek a dinamikus diagramkészítéshez szükséges adatok. Ne törölje ezt a munkalapot.\nA munkalap törlése kedvezőtlen hatással lehet a munkafüzet dinamikus képességeire.","Ne törölje ezt a munkalapot."]
["A B2 cellában szerepel a táblázat címe.","Dinamikus diagram tartalma"]
["A táblázatfejlécek a B3–D3 cellákban vannak. \nEz a táblázat automatikusan frissül a Mérföldkövek munkalapon beírt tartalom alapján.\nFigyelmeztetés: A táblázat tartalmának módosítása vagy törlése kedvezőtlen hatással lehet az Ütemterv munkalap Ütemterv diagramjának dinamikus frissítési képességeire.\nLépjen az A15 cellába a következő utasításért.","Dátum","Események","Pozíció"]
[null,{"$f":"IFERROR(IF(LEN(Mérföldkövek!D3)=0,\"\",INDEX(ÜtemtervMérföldkövei[],Mérföldkövek!$B3+$B$17,3)),\"\")","v":"2018-06-29"},{"$f":"IFERROR(IF(LEN(Mérföldkövek!E3)=0,\"\",INDEX(ÜtemtervMérföldkövei[],Mérföldkövek!$B3+$B$17,4)),\"\")","v":"Kezdés"},{"$f":"IFERROR(INDEX(ÜtemtervMérföldkövei[],Mérföldkövek!$B3+$B$17,2),\"\")","v":1}]
[null,{"$f":"IFERROR(IF(LEN(Mérföldkövek!D4)=0,\"\",INDEX(ÜtemtervMérföldkövei[],Mérföldkövek!$B4+$B$17,3)),\"\")","v":"2018-07-09"},{"$f":"IFERROR(IF(LEN(Mérföldkövek!E4)=0,\"\",INDEX(ÜtemtervMérföldkövei[],Mérföldkövek!$B4+$B$17,4)),\"\")","v":"Problémaelemzés\n1. tevékenység"},{"$f":"IFERROR(INDEX(ÜtemtervMérföldkövei[],Mérföldkövek!$B4+$B$17,2),\"\")","v":-2}]
[null,{"$f":"IFERROR(IF(LEN(Mérföldkövek!D5)=0,\"\",INDEX(ÜtemtervMérföldkövei[],Mérföldkövek!$B5+$B$17,3)),\"\")","v":"2018-07-29"},{"$f":"IFERROR(IF(LEN(Mérföldkövek!E5)=0,\"\",INDEX(ÜtemtervMérföldkövei[],Mérföldkövek!$B5+$B$17,4)),\"\")","v":"Üzleti terv elkészítése\n1. tevékenység\n2. tevékenység"},{"$f":"IFERROR(INDEX(ÜtemtervMérföldkövei[],Mérföldkövek!$B5+$B$17,2),\"\")","v":1}]
[null,{"$f":"IFERROR(IF(LEN(Mérföldkövek!D6)=0,\"\",INDEX(ÜtemtervMérföldkövei[],Mérföldkövek!$B6+$B$17,3)),\"\")","v":"2018-08-28"},{"$f":"IFERROR(IF(LEN(Mérföldkövek!E6)=0,\"\",INDEX(ÜtemtervMérföldkövei[],Mérföldkövek!$B6+$B$17,4)),\"\")","v":"Bemutató ellenőrzése"},{"$f":"IFERROR(INDEX(ÜtemtervMérföldkövei[],Mérföldkövek!$B6+$B$17,2),\"\")","v":-1}]
[null,{"$f":"IFERROR(IF(LEN(Mérföldkövek!D7)=0,\"\",INDEX(ÜtemtervMérföldkövei[],Mérföldkövek!$B7+$B$17,3)),\"\")","v":"2018-10-07"},{"$f":"IFERROR(IF(LEN(Mérföldkövek!E7)=0,\"\",INDEX(ÜtemtervMérföldkövei[],Mérföldkövek!$B7+$B$17,4)),\"\")","v":"Vezetőségi nyitóülés\n1. tevékenység\n2. tevékenység"},{"$f":"IFERROR(INDEX(ÜtemtervMérföldkövei[],Mérföldkövek!$B7+$B$17,2),\"\")","v":-0.5}]
[null,{"$f":"IFERROR(IF(LEN(Mérföldkövek!D8)=0,\"\",INDEX(ÜtemtervMérföldkövei[],Mérföldkövek!$B8+$B$17,3)),\"\")","v":"2018-11-26"},{"$f":"IFERROR(IF(LEN(Mérföldkövek!E8)=0,\"\",INDEX(ÜtemtervMérföldkövei[],Mérföldkövek!$B8+$B$17,4)),\"\")","v":"Vezetőségi eligazítás\n1. tevékenység\n2. tevékenység\n3. tevékenység"},{"$f":"IFERROR(INDEX(ÜtemtervMérföldkövei[],Mérföldkövek!$B8+$B$17,2),\"\")","v":2}]
[null,{"$f":"IFERROR(IF(LEN(Mérföldkövek!D9)=0,\"\",INDEX(ÜtemtervMérföldkövei[],Mérföldkövek!$B9+$B$17,3)),\"\")","v":"2019-01-25"},{"$f":"IFERROR(IF(LEN(Mérföldkövek!E9)=0,\"\",INDEX(ÜtemtervMérföldkövei[],Mérföldkövek!$B9+$B$17,4)),\"\")","v":"Részvényvásárlás"},{"$f":"IFERROR(INDEX(ÜtemtervMérföldkövei[],Mérföldkövek!$B9+$B$17,2),\"\")","v":0.5}]
[null,{"$f":"IFERROR(IF(LEN(Mérföldkövek!D10)=0,\"\",INDEX(ÜtemtervMérföldkövei[],Mérföldkövek!$B10+$B$17,3)),\"\")","v":"2019-04-05"},{"$f":"IFERROR(IF(LEN(Mérföldkövek!E10)=0,\"\",INDEX(ÜtemtervMérföldkövei[],Mérföldkövek!$B10+$B$17,4)),\"\")","v":"Erőforrás-kijelölés"},{"$f":"IFERROR(INDEX(ÜtemtervMérföldkövei[],Mérföldkövek!$B10+$B$17,2),\"\")","v":-1}]
[null,{"$f":"IFERROR(IF(LEN(Mérföldkövek!D11)=0,\"\",INDEX(ÜtemtervMérföldkövei[],Mérföldkövek!$B11+$B$17,3)),\"\")","v":"2019-06-24"},{"$f":"IFERROR(IF(LEN(Mérföldkövek!E11)=0,\"\",INDEX(ÜtemtervMérföldkövei[],Mérföldkövek!$B11+$B$17,4)),\"\")","v":"Csapat létrehozása\n1. tevékenység "},{"$f":"IFERROR(INDEX(ÜtemtervMérföldkövei[],Mérföldkövek!$B11+$B$17,2),\"\")","v":0.5}]
[null,{"$f":"IFERROR(IF(LEN(Mérföldkövek!D12)=0,\"\",INDEX(ÜtemtervMérföldkövei[],Mérföldkövek!$B12+$B$17,3)),\"\")","v":"2019-09-22"},{"$f":"IFERROR(IF(LEN(Mérföldkövek!E12)=0,\"\",INDEX(ÜtemtervMérföldkövei[],Mérföldkövek!$B12+$B$17,4)),\"\")","v":"Nyitó csapatgyűlés\n1. tevékenység \n2. tevékenység\n3. tevékenység\n4. tevékenység"},{"$f":"IFERROR(INDEX(ÜtemtervMérföldkövei[],Mérföldkövek!$B12+$B$17,2),\"\")","v":-2}]
[]
["Az ütemtervben való görgetés egy növekményes érték segítségével lehetséges. A B15 cellában szerepel ennek a lehetőségnek a címe.\nA B16 és a B17 cellában található egy fejléccel ellátott táblázat, illetve egy érték.\nLépjen az A19 cellába a következő utasításért.","Görgethetőség"]
[null,"Soronként"]
[null,0]
[]
["Az Ütemterv diagram az ütemterv éveit ábrázolja. Ehhez az éveket a Mérföldkő listából kell rögzíteni. \nA szakasz címe Év, amely a B19 cellában található. \nAz év értékei automatikusan jönnek létre a C20–C22 cellákban.\nFigyelmeztetés: Az évek törlése vagy megváltoztatása esetén módosulhat az Ütemterv diagram diagramon való ábrázolási pontossága.\nLépjen az A24 cellába a következő utasításért.","Év"]
[null,{"$f":"IFERROR(YEAR(B4),\"\")","v":2018},"< – az ütemterv indulási pozíciójának éve"]
[null,{"$f":"IFERROR(IF(YEAR($B$9)=$B$20,\"\",YEAR($B$9)),\"\")","v":""},"< – az ütemterv középső pozíciójának éve; ha ez az év megegyezik az ütemterv indulási pozíciójának évével, akkor üres lesz"]
[null,{"$f":"IFERROR(IF(YEAR($B$13)=$B$20,\"\",YEAR($B$13)),\"\")","v":2019},"< – az ütemterv záró pozíciójának éve; ha ez az év megegyezik az ütemterv indulási pozíciójának évével, akkor üres lesz"]
[]
["Ezen a munkalapon az Ütemterv diagramon szereplő gyűrűjelzők a dinamikus diagram tartalmából származó dátumokat tartalmazzák. A dátumok a következők: első dátum a C24 cellában, középső dátum a C25 cellában és utolsó dátum a C26 cellában.\nEzen a munkalapon nincs több utasítás.","Első dátum",{"$f":"B4","v":"2018-06-29"}]
[null,"Középső dátum",{"$f":"B9","v":"2018-11-26"}]
[null,"Utolsó dátum",{"$f":"B13","v":"2019-09-22"}]